[Event "Titled Tuesday Blitz January 03 Late 2023"]
[White "Dourerassou, Jonathan"]
[Black "Altman, Joshua"]
[WhiteFideId "628050"]
[BlackFideId "426210"]
[WhiteElo "2414"]
[BlackElo "2120"]
[Result "1-0"]
[Round "11"]
[TimeControl "180+2"]
[Date "2023.01.03"]
[WhiteClock "0:02:08"]
[BlackClock "0:01:07"]

1. d4 {[%clk 0:03:00]}  Nf6 {[%clk 0:02:59]} 2. Bg5 {[%clk 0:02:59]}  e6 {[%clk 0:02:59]} 3. e4 {[%clk 0:02:57]}  h6 {[%clk 0:02:59]} 4. Bxf6 {[%clk 0:02:57]}  Qxf6 {[%clk 0:03:00]} 5. Nc3 {[%clk 0:02:57]}  b6 {[%clk 0:02:59]} 6. Nf3 {[%clk 0:02:57]}  Bb7 {[%clk 0:02:59]} 7. Bd3 {[%clk 0:02:57]}  c5 {[%clk 0:02:59]} 8. d5 {[%clk 0:02:47]}  a6 {[%clk 0:02:41]} 9. Qe2 {[%clk 0:02:37]}  d6 {[%clk 0:02:41]} 10. dxe6 {[%clk 0:02:32]}  fxe6 {[%clk 0:02:30]} 11. e5 {[%clk 0:02:32]}  Bxf3 {[%clk 0:02:13]} 12. exf6 {[%clk 0:02:32]}  Bxe2 {[%clk 0:02:13]} 13. fxg7 {[%clk 0:02:29]}  Bxg7 {[%clk 0:02:13]} 14. Bxe2 {[%clk 0:02:28]}  Nc6 {[%clk 0:02:10]} 15. Bh5+ {[%clk 0:02:25]}  Kd7 {[%clk 0:02:08]} 16. O-O-O {[%clk 0:02:24]}  Nd4 {[%clk 0:02:05]} 17. Rhe1 {[%clk 0:02:24]}  Rhf8 {[%clk 0:02:03]} 18. f3 {[%clk 0:02:24]}  b5 {[%clk 0:02:01]} 19. Ne4 {[%clk 0:02:24]}  Be5 {[%clk 0:01:31]} 20. Nxc5+ {[%clk 0:02:19]}  Kc6 {[%clk 0:01:29]} 21. Nd3 {[%clk 0:02:13]}  Bxh2 {[%clk 0:01:11]} 22. c3 {[%clk 0:02:13]}  Nf5 {[%clk 0:01:07]} 23. Rxe6 {[%clk 0:02:09]}  Rae8 {[%clk 0:01:07]} 24. Bxe8+ {[%clk 0:02:08]} 1-0


[Site "https://www.chess.com"]

[Event "Titled Tuesday Blitz January 03 Late 2023"]
[White "benny_aizenberg"]
[Black "Bjelobrk, Igor"]
[BlackFideId "4300726"]
[WhiteElo "2507"]
[BlackElo "2403"]
[Result "0-1"]
[Round "11"]
[TimeControl "180+2"]
[Date "2023.01.03"]
[WhiteClock "0:00:03"]
[BlackClock "0:00:05"]

1. e4 {[%clk 0:03:00]}  e5 {[%clk 0:02:55]} 2. Nf3 {[%clk 0:03:00]}  Nc6 {[%clk 0:02:54]} 3. d4 {[%clk 0:02:58]}  exd4 {[%clk 0:02:53]} 4. Nxd4 {[%clk 0:02:59]}  Nf6 {[%clk 0:02:53]} 5. Nxc6 {[%clk 0:02:58]}  bxc6 {[%clk 0:02:53]} 6. e5 {[%clk 0:02:58]}  Qe7 {[%clk 0:02:53]} 7. Qe2 {[%clk 0:02:59]}  Nd5 {[%clk 0:02:52]} 8. h4 {[%clk 0:02:59]}  Qe6 {[%clk 0:02:50]} 9. c4 {[%clk 0:02:58]}  Nb6 {[%clk 0:02:46]} 10. Nd2 {[%clk 0:02:55]}  Bb4 {[%clk 0:02:28]} 11. b3 {[%clk 0:02:49]}  Bc3 {[%clk 0:02:25]} 12. Rb1 {[%clk 0:02:48]}  Qxe5 {[%clk 0:02:23]} 13. Qxe5+ {[%clk 0:02:43]}  Bxe5 {[%clk 0:02:24]} 14. Nf3 {[%clk 0:02:44]}  Bc3+ {[%clk 0:02:24]} 15. Bd2 {[%clk 0:02:43]}  Bxd2+ {[%clk 0:02:24]} 16. Kxd2 {[%clk 0:02:44]}  O-O {[%clk 0:02:24]} 17. Bd3 {[%clk 0:02:43]}  d6 {[%clk 0:02:20]} 18. Nd4 {[%clk 0:02:34]}  Bb7 {[%clk 0:01:58]} 19. Nf5 {[%clk 0:02:22]}  Rfe8 {[%clk 0:01:56]} 20. c5 {[%clk 0:02:18]}  dxc5 {[%clk 0:01:53]} 21. Rbc1 {[%clk 0:02:17]}  Rad8 {[%clk 0:01:47]} 22. Rxc5 {[%clk 0:02:17]}  Ba6 {[%clk 0:01:46]} 23. Rh3 {[%clk 0:02:15]}  Nd7 {[%clk 0:01:08]} 24. Rxc6 {[%clk 0:01:59]}  Bxd3 {[%clk 0:01:08]} 25. Rxd3 {[%clk 0:01:59]}  Ne5 {[%clk 0:01:08]} 26. Rc3 {[%clk 0:01:35]}  Nxd3 {[%clk 0:01:07]} 27. Rxd3 {[%clk 0:01:35]}  Rxd3+ {[%clk 0:01:07]} 28. Kxd3 {[%clk 0:01:35]}  Kf8 {[%clk 0:01:05]} 29. Nd4 {[%clk 0:01:35]}  Ke7 {[%clk 0:00:57]} 30. a4 {[%clk 0:01:34]}  Kd7 {[%clk 0:00:56]} 31. b4 {[%clk 0:01:35]}  Re1 {[%clk 0:00:52]} 32. Kc4 {[%clk 0:01:34]}  Rf1 {[%clk 0:00:50]} 33. f3 {[%clk 0:01:33]}  Rf2 {[%clk 0:00:50]} 34. g4 {[%clk 0:01:33]}  g6 {[%clk 0:00:48]} 35. b5 {[%clk 0:01:28]}  Rh2 {[%clk 0:00:21]} 36. Nc6 {[%clk 0:01:27]}  Rxh4 {[%clk 0:00:21]} 37. Nxa7 {[%clk 0:01:26]}  h5 {[%clk 0:00:21]} 38. a5 {[%clk 0:01:05]}  hxg4 {[%clk 0:00:21]} 39. fxg4 {[%clk 0:01:04]}  Rxg4+ {[%clk 0:00:22]} 40. Kb3 {[%clk 0:01:03]}  Kd6 {[%clk 0:00:17]} 41. Nc6 {[%clk 0:00:49]}  Kc5 {[%clk 0:00:17]} 42. a6 {[%clk 0:00:49]}  Kb6 {[%clk 0:00:16]} 43. Ne5 {[%clk 0:00:47]}  Rf4 {[%clk 0:00:16]} 44. Nc4+ {[%clk 0:00:25]}  Ka7 {[%clk 0:00:17]} 45. Kc3 {[%clk 0:00:22]}  g5 {[%clk 0:00:16]} 46. Kd3 {[%clk 0:00:22]}  f5 {[%clk 0:00:15]} 47. Ne3 {[%clk 0:00:20]}  g4 {[%clk 0:00:13]} 48. Nd5 {[%clk 0:00:20]}  Ra4 {[%clk 0:00:11]} 49. Nxc7 {[%clk 0:00:18]}  Kb6 {[%clk 0:00:10]} 50. Ne8 {[%clk 0:00:16]}  f4 {[%clk 0:00:09]} 51. Nd6 {[%clk 0:00:16]}  Ra3+ {[%clk 0:00:08]} 52. Ke4 {[%clk 0:00:13]}  g3 {[%clk 0:00:08]} 53. Nc4+ {[%clk 0:00:11]}  Kc5 {[%clk 0:00:03]} 54. Nxa3 {[%clk 0:00:11]}  g2 {[%clk 0:00:03]} 55. Kxf4 {[%clk 0:00:06]}  g1=Q {[%clk 0:00:04]} 56. Ke4 {[%clk 0:00:04]}  Qg2+ {[%clk 0:00:04]} 57. Kf5 {[%clk 0:00:03]}  Qf3+ {[%clk 0:00:04]} 58. Ke6 {[%clk 0:00:03]}  Qxa3 {[%clk 0:00:05]} 59. Kd7 {[%clk 0:00:03]}  Kxb5 {[%clk 0:00:05]} 60. Kc7 {[%clk 0:00:03]}  Qxa6 {[%clk 0:00:05]} 0-1


[Site "https://www.chess.com"]

[Event "Titled Tuesday Blitz January 03 Late 2023"]
[White "Adewumi, Tanitoluwa"]
[Black "Shuvalova, Polina"]
[WhiteFideId "30966396"]
[BlackFideId "24171760"]
[WhiteElo "2283"]
[BlackElo "2484"]
[Result "0-1"]
[Round "11"]
[TimeControl "180+2"]
[Date "2023.01.03"]
[WhiteClock "0:00:01"]
[BlackClock "0:00:26"]

1. e4 {[%clk 0:03:00]}  e5 {[%clk 0:02:59]} 2. Nf3 {[%clk 0:02:56]}  Nc6 {[%clk 0:02:58]} 3. Nc3 {[%clk 0:02:52]}  Nf6 {[%clk 0:02:58]} 4. Bb5 {[%clk 0:02:49]}  Bd6 {[%clk 0:02:53]} 5. Bxc6 {[%clk 0:02:43]}  dxc6 {[%clk 0:02:52]} 6. O-O {[%clk 0:02:42]}  O-O {[%clk 0:02:51]} 7. d3 {[%clk 0:02:42]}  c5 {[%clk 0:02:49]} 8. b3 {[%clk 0:02:31]}  Re8 {[%clk 0:02:49]} 9. Bb2 {[%clk 0:02:29]}  Nd7 {[%clk 0:02:44]} 10. Ne2 {[%clk 0:02:23]}  Nf8 {[%clk 0:02:43]} 11. Ng3 {[%clk 0:01:55]}  f6 {[%clk 0:02:33]} 12. Nd2 {[%clk 0:01:55]}  Ne6 {[%clk 0:02:32]} 13. Nf5 {[%clk 0:01:52]}  Nd4 {[%clk 0:02:28]} 14. Nxd6 {[%clk 0:01:52]}  cxd6 {[%clk 0:02:24]} 15. f4 {[%clk 0:01:43]}  b6 {[%clk 0:02:19]} 16. Kh1 {[%clk 0:01:35]}  Bb7 {[%clk 0:02:18]} 17. fxe5 {[%clk 0:01:18]}  dxe5 {[%clk 0:02:18]} 18. Qh5 {[%clk 0:01:15]}  Nxc2 {[%clk 0:02:12]} 19. Rac1 {[%clk 0:00:58]}  Qxd3 {[%clk 0:02:06]} 20. Nc4 {[%clk 0:00:31]}  Qxe4 {[%clk 0:01:56]} 21. Rf2 {[%clk 0:00:27]}  Ne3 {[%clk 0:01:20]} 22. Nd6 {[%clk 0:00:17]}  Qc6 {[%clk 0:01:12]} 23. Qf7+ {[%clk 0:00:16]}  Kh8 {[%clk 0:01:10]} 24. Nxe8 {[%clk 0:00:07]}  Rxe8 {[%clk 0:01:09]} 25. Rg1 {[%clk 0:00:04]}  Rg8 {[%clk 0:01:04]} 26. h3 {[%clk 0:00:03]}  Qe4 {[%clk 0:00:56]} 27. Bc1 {[%clk 0:00:03]}  Bd5 {[%clk 0:00:56]} 28. Qe7 {[%clk 0:00:02]}  Nf5 {[%clk 0:00:55]} 29. Qd7 {[%clk 0:00:02]}  Ng3+ {[%clk 0:00:54]} 30. Kh2 {[%clk 0:00:03]}  Nh5 {[%clk 0:00:40]} 31. Rgf1 {[%clk 0:00:03]}  Nf4 {[%clk 0:00:38]} 32. Bxf4 {[%clk 0:00:03]}  exf4 {[%clk 0:00:38]} 33. Qg4 {[%clk 0:00:04]}  g5 {[%clk 0:00:36]} 34. Qd7 {[%clk 0:00:04]}  h5 {[%clk 0:00:30]} 35. Qxa7 {[%clk 0:00:03]}  g4 {[%clk 0:00:28]} 36. Qxb6 {[%clk 0:00:03]}  g3+ {[%clk 0:00:27]} 37. Kh1 {[%clk 0:00:03]}  gxf2 {[%clk 0:00:25]} 38. Qxf6+ {[%clk 0:00:03]}  Kh7 {[%clk 0:00:26]} 39. Rxf2 {[%clk 0:00:02]}  Rxg2 {[%clk 0:00:26]} 40. Qf7+ {[%clk 0:00:01]} 0-1


[Site "https://www.chess.com"]

[Event "Titled Tuesday Blitz January 03 Late 2023"]
[White "Vovk, Orest"]
[Black "Fishbein, Alexander"]
[WhiteFideId "14113490"]
[BlackFideId "2000377"]
[WhiteElo "2315"]
[BlackElo "2366"]
[Result "1-0"]
[Round "11"]
[TimeControl "180+2"]
[Date "2023.01.03"]
[WhiteClock "0:00:11"]
[BlackClock "0:00:42"]

1. h4 {[%clk 0:02:49]}  e5 {[%clk 0:02:58]} 2. h5 {[%clk 0:02:50]}  h6 {[%clk 0:02:58]} 3. Nc3 {[%clk 0:02:48]}  d5 {[%clk 0:02:57]} 4. e4 {[%clk 0:02:48]}  d4 {[%clk 0:02:56]} 5. Nce2 {[%clk 0:02:48]}  Nf6 {[%clk 0:02:55]} 6. Ng3 {[%clk 0:02:48]}  Be6 {[%clk 0:02:53]} 7. Nf3 {[%clk 0:02:47]}  Bd6 {[%clk 0:02:49]} 8. Nh4 {[%clk 0:02:43]}  c5 {[%clk 0:02:40]} 9. Nhf5 {[%clk 0:02:41]}  Kf8 {[%clk 0:02:39]} 10. d3 {[%clk 0:02:32]}  Nc6 {[%clk 0:02:38]} 11. c4 {[%clk 0:02:22]}  dxc3 {[%clk 0:02:32]} 12. bxc3 {[%clk 0:02:22]}  c4 {[%clk 0:02:22]} 13. dxc4 {[%clk 0:02:13]}  Bc5 {[%clk 0:02:17]} 14. Be3 {[%clk 0:02:04]}  Bxe3 {[%clk 0:02:10]} 15. Qxd8+ {[%clk 0:01:59]}  Rxd8 {[%clk 0:02:08]} 16. Nxe3 {[%clk 0:02:00]}  Na5 {[%clk 0:01:55]} 17. Nd5 {[%clk 0:02:00]}  b6 {[%clk 0:01:53]} 18. Rb1 {[%clk 0:01:49]}  Nd7 {[%clk 0:01:49]} 19. Be2 {[%clk 0:01:45]}  Nc5 {[%clk 0:01:48]} 20. O-O {[%clk 0:01:43]}  f6 {[%clk 0:01:46]} 21. Rfd1 {[%clk 0:01:36]}  Kf7 {[%clk 0:01:45]} 22. f3 {[%clk 0:01:28]}  Na4 {[%clk 0:01:43]} 23. Rdc1 {[%clk 0:01:17]}  Rc8 {[%clk 0:01:42]} 24. Rb4 {[%clk 0:01:16]}  Nc5 {[%clk 0:01:40]} 25. Nf5 {[%clk 0:01:11]}  Rhd8 {[%clk 0:01:38]} 26. Kf2 {[%clk 0:01:03]}  Na6 {[%clk 0:01:35]} 27. Ra4 {[%clk 0:00:58]}  Kf8 {[%clk 0:01:29]} 28. Rb1 {[%clk 0:00:53]}  Bd7 {[%clk 0:01:25]} 29. Ra3 {[%clk 0:00:35]}  Nc5 {[%clk 0:01:05]} 30. Nd6 {[%clk 0:00:23]}  Rb8 {[%clk 0:01:02]} 31. Nb5 {[%clk 0:00:22]}  Bxb5 {[%clk 0:00:59]} 32. cxb5 {[%clk 0:00:19]}  Rbc8 {[%clk 0:00:55]} 33. c4 {[%clk 0:00:19]}  Ncb7 {[%clk 0:00:47]} 34. Rb4 {[%clk 0:00:18]}  Rc5 {[%clk 0:00:43]} 35. g3 {[%clk 0:00:17]}  Nd6 {[%clk 0:00:43]} 36. Ne3 {[%clk 0:00:12]}  Rdc8 {[%clk 0:00:42]} 37. Raa4 {[%clk 0:00:11]} 1-0


[Site "https://www.chess.com"]

[Event "Titled Tuesday Blitz January 03 Late 2023"]
[White "Khandelwal, Ankush"]
[Black "Jaferian, Koosha"]
[WhiteFideId "413470"]
[BlackFideId "12507440"]
[WhiteElo "2205"]
[BlackElo "2233"]
[Result "1-0"]
[Round "11"]
[TimeControl "180+2"]
[Date "2023.01.03"]
[WhiteClock "0:01:00"]
[BlackClock "0:01:37"]

1. e4 {[%clk 0:02:58]}  Nf6 {[%clk 0:02:59]} 2. e5 {[%clk 0:02:58]}  Nd5 {[%clk 0:03:00]} 3. d4 {[%clk 0:02:58]}  d6 {[%clk 0:03:00]} 4. Nf3 {[%clk 0:02:58]}  dxe5 {[%clk 0:03:01]} 5. Nxe5 {[%clk 0:02:59]}  c6 {[%clk 0:03:01]} 6. Bc4 {[%clk 0:02:45]}  Bf5 {[%clk 0:02:56]} 7. g4 {[%clk 0:02:39]}  Bg6 {[%clk 0:02:56]} 8. h4 {[%clk 0:02:39]}  Nb6 {[%clk 0:01:54]} 9. Bb3 {[%clk 0:02:10]}  N8d7 {[%clk 0:01:49]} 10. Nxg6 {[%clk 0:01:37]}  hxg6 {[%clk 0:01:48]} 11. Qf3 {[%clk 0:01:37]}  e6 {[%clk 0:01:46]} 12. Bg5 {[%clk 0:01:34]}  Be7 {[%clk 0:01:45]} 13. Bxe7 {[%clk 0:01:33]}  Qxe7 {[%clk 0:01:46]} 14. h5 {[%clk 0:01:32]}  gxh5 {[%clk 0:01:45]} 15. Rxh5 {[%clk 0:01:31]}  O-O {[%clk 0:01:45]} 16. Qh3 {[%clk 0:01:20]}  f6 {[%clk 0:01:39]} 17. Rh8+ {[%clk 0:01:11]}  Kf7 {[%clk 0:01:38]} 18. Qh5+ {[%clk 0:01:12]}  g6 {[%clk 0:01:38]} 19. Rh7+ {[%clk 0:01:12]}  Ke8 {[%clk 0:01:38]} 20. Rxe7+ {[%clk 0:01:03]}  Kxe7 {[%clk 0:01:39]} 21. Qxg6 {[%clk 0:01:02]}  Rf7 {[%clk 0:01:37]} 22. Nc3 {[%clk 0:01:00]} 1-0


[Site "https://www.chess.com"]

[Event "Titled Tuesday Blitz January 03 Late 2023"]
[White "Korchmar, Vasiliy"]
[Black "Ibadov, Dashgyn"]
[WhiteFideId "24131750"]
[BlackFideId "24107514"]
[WhiteElo "2438"]
[BlackElo "2391"]
[Result "0-1"]
[Round "11"]
[TimeControl "180+2"]
[Date "2023.01.03"]
[WhiteClock "0:00:03"]
[BlackClock "0:00:14"]

1. Nf3 {[%clk 0:02:51]}  d5 {[%clk 0:02:59]} 2. g3 {[%clk 0:02:51]}  Nd7 {[%clk 0:02:59]} 3. d4 {[%clk 0:02:49]}  Nb6 {[%clk 0:02:58]} 4. Bg2 {[%clk 0:02:49]}  Bf5 {[%clk 0:02:59]} 5. O-O {[%clk 0:02:48]}  e6 {[%clk 0:02:58]} 6. b3 {[%clk 0:02:47]}  h6 {[%clk 0:02:59]} 7. Bb2 {[%clk 0:02:47]}  Nf6 {[%clk 0:02:59]} 8. Nbd2 {[%clk 0:02:47]}  Be7 {[%clk 0:03:00]} 9. e3 {[%clk 0:02:47]}  O-O {[%clk 0:02:59]} 10. Re1 {[%clk 0:02:42]}  a5 {[%clk 0:02:58]} 11. a3 {[%clk 0:02:42]}  a4 {[%clk 0:02:56]} 12. b4 {[%clk 0:02:41]}  c6 {[%clk 0:02:56]} 13. Rc1 {[%clk 0:02:36]}  Ne4 {[%clk 0:02:49]} 14. c4 {[%clk 0:02:34]}  Nxd2 {[%clk 0:02:46]} 15. Nxd2 {[%clk 0:02:33]}  dxc4 {[%clk 0:02:37]} 16. Nxc4 {[%clk 0:02:33]}  Nxc4 {[%clk 0:02:37]} 17. Rxc4 {[%clk 0:02:34]}  Qd7 {[%clk 0:02:04]} 18. e4 {[%clk 0:02:33]}  Bg6 {[%clk 0:02:03]} 19. h4 {[%clk 0:02:31]}  Rfd8 {[%clk 0:01:59]} 20. h5 {[%clk 0:02:31]}  Bh7 {[%clk 0:02:00]} 21. Qg4 {[%clk 0:02:30]}  Bf6 {[%clk 0:01:54]} 22. Rd1 {[%clk 0:02:24]}  Rac8 {[%clk 0:01:22]} 23. Bf3 {[%clk 0:02:24]}  Qe7 {[%clk 0:01:06]} 24. Kg2 {[%clk 0:02:18]}  Bg5 {[%clk 0:00:54]} 25. d5 {[%clk 0:02:03]}  f5 {[%clk 0:00:39]} 26. exf5 {[%clk 0:01:50]}  Bxf5 {[%clk 0:00:40]} 27. Qd4 {[%clk 0:01:40]}  cxd5 {[%clk 0:00:40]} 28. Rxc8 {[%clk 0:01:38]}  Rxc8 {[%clk 0:00:41]} 29. Qa7 {[%clk 0:01:32]}  Kh7 {[%clk 0:00:37]} 30. Re1 {[%clk 0:01:23]}  Rc2 {[%clk 0:00:36]} 31. Bd4 {[%clk 0:01:21]}  Bf6 {[%clk 0:00:33]} 32. Bc5 {[%clk 0:01:08]}  Qd7 {[%clk 0:00:28]} 33. Bd1 {[%clk 0:01:07]}  Rb2 {[%clk 0:00:17]} 34. Bxa4 {[%clk 0:01:07]}  Qf7 {[%clk 0:00:17]} 35. Bd1 {[%clk 0:00:57]}  Be4+ {[%clk 0:00:17]} 36. Kg1 {[%clk 0:00:47]}  Bc3 {[%clk 0:00:17]} 37. Rf1 {[%clk 0:00:39]}  Rb1 {[%clk 0:00:16]} 38. Be2 {[%clk 0:00:25]}  Rxf1+ {[%clk 0:00:15]} 39. Kxf1 {[%clk 0:00:26]}  Qf5 {[%clk 0:00:15]} 40. Bd1 {[%clk 0:00:03]}  Qh3+ {[%clk 0:00:14]} 41. Ke2 {[%clk 0:00:03]}  Qg4+ {[%clk 0:00:14]} 0-1


[Site "https://www.chess.com"]

[Event "Titled Tuesday Blitz January 03 Late 2023"]
[White "De La Colina, Nicolas"]
[Black "Karthik, Advaith"]
[WhiteFideId "30946921"]
[BlackFideId "30946050"]
[WhiteElo "2244"]
[BlackElo "2075"]
[Result "0-1"]
[Round "11"]
[TimeControl "180+2"]
[Date "2023.01.03"]
[WhiteClock "0:00:01"]
[BlackClock "0:00:48"]

1. c4 {[%clk 0:02:59]}  Nf6 {[%clk 0:02:59]} 2. Nf3 {[%clk 0:02:58]}  e6 {[%clk 0:02:59]} 3. e3 {[%clk 0:02:58]}  c5 {[%clk 0:02:56]} 4. Nc3 {[%clk 0:02:54]}  Be7 {[%clk 0:02:55]} 5. b3 {[%clk 0:02:53]}  b6 {[%clk 0:02:55]} 6. Bb2 {[%clk 0:02:53]}  Bb7 {[%clk 0:02:56]} 7. Be2 {[%clk 0:02:53]}  d6 {[%clk 0:02:56]} 8. O-O {[%clk 0:02:53]}  Nbd7 {[%clk 0:02:55]} 9. d4 {[%clk 0:02:52]}  O-O {[%clk 0:02:48]} 10. Rc1 {[%clk 0:02:48]}  d5 {[%clk 0:02:41]} 11. cxd5 {[%clk 0:01:58]}  Nxd5 {[%clk 0:02:41]} 12. Nxd5 {[%clk 0:01:56]}  Bxd5 {[%clk 0:02:40]} 13. dxc5 {[%clk 0:01:41]}  Nxc5 {[%clk 0:02:40]} 14. Nd4 {[%clk 0:01:41]}  Bf6 {[%clk 0:02:36]} 15. Qd2 {[%clk 0:01:28]}  Rc8 {[%clk 0:02:29]} 16. Rfd1 {[%clk 0:01:27]}  Qe7 {[%clk 0:02:29]} 17. Ba6 {[%clk 0:01:25]}  Nxa6 {[%clk 0:02:20]} 18. Qe2 {[%clk 0:01:06]}  Nc5 {[%clk 0:02:17]} 19. Rc2 {[%clk 0:00:59]}  Ne4 {[%clk 0:02:00]} 20. Rdc1 {[%clk 0:00:54]}  Bb7 {[%clk 0:01:54]} 21. Qd3 {[%clk 0:00:42]}  Rxc2 {[%clk 0:01:42]} 22. Rxc2 {[%clk 0:00:43]}  Nc5 {[%clk 0:01:43]} 23. Qe2 {[%clk 0:00:42]}  Bxd4 {[%clk 0:01:36]} 24. Bxd4 {[%clk 0:00:41]}  Ne4 {[%clk 0:01:35]} 25. Qd3 {[%clk 0:00:25]}  h6 {[%clk 0:01:26]} 26. Be5 {[%clk 0:00:21]}  Rd8 {[%clk 0:01:17]} 27. Qe2 {[%clk 0:00:21]}  Rc8 {[%clk 0:01:13]} 28. Qg4 {[%clk 0:00:07]}  Nf6 {[%clk 0:01:04]} 29. Rxc8+ {[%clk 0:00:04]}  Bxc8 {[%clk 0:01:05]} 30. Qc4 {[%clk 0:00:04]}  Bb7 {[%clk 0:01:03]} 31. h3 {[%clk 0:00:04]}  Qd8 {[%clk 0:00:52]} 32. Qh4 {[%clk 0:00:03]}  Qd1+ {[%clk 0:00:50]} 33. Kh2 {[%clk 0:00:03]}  Qd5 {[%clk 0:00:51]} 34. Qg3 {[%clk 0:00:03]}  Nh5 {[%clk 0:00:48]} 35. e4 {[%clk 0:00:01]} 0-1


[Site "https://www.chess.com"]

[Event "Titled Tuesday Blitz January 03 Late 2023"]
[White "Ehlvest, Jaan"]
[Black "Moreno Perez, Tobias Sebastian"]
[WhiteFideId "4500016"]
[BlackFideId "186716"]
[WhiteElo "2530"]
[BlackElo "2256"]
[Result "1-0"]
[Round "11"]
[TimeControl "180+2"]
[Date "2023.01.03"]
[WhiteClock "0:00:08"]
[BlackClock "0:00:01"]

1. e4 {[%clk 0:02:50]}  c6 {[%clk 0:03:00]} 2. d4 {[%clk 0:02:48]}  d5 {[%clk 0:03:00]} 3. exd5 {[%clk 0:02:48]}  cxd5 {[%clk 0:03:01]} 4. c4 {[%clk 0:02:48]}  Nf6 {[%clk 0:03:01]} 5. Nc3 {[%clk 0:02:48]}  e6 {[%clk 0:03:02]} 6. Nf3 {[%clk 0:02:42]}  Be7 {[%clk 0:03:02]} 7. cxd5 {[%clk 0:02:42]}  Nxd5 {[%clk 0:03:01]} 8. Bc4 {[%clk 0:02:42]}  O-O {[%clk 0:03:00]} 9. O-O {[%clk 0:02:42]}  Nc6 {[%clk 0:03:00]} 10. Re1 {[%clk 0:02:41]}  Nf6 {[%clk 0:02:58]} 11. a3 {[%clk 0:02:38]}  b6 {[%clk 0:02:57]} 12. Qd3 {[%clk 0:02:33]}  Bb7 {[%clk 0:02:50]} 13. Ba2 {[%clk 0:02:33]}  Rc8 {[%clk 0:02:40]} 14. Bg5 {[%clk 0:02:32]}  Na5 {[%clk 0:02:37]} 15. Rad1 {[%clk 0:02:25]}  Nc6 {[%clk 0:02:03]} 16. Bb1 {[%clk 0:01:40]}  g6 {[%clk 0:02:00]} 17. Ba2 {[%clk 0:01:39]}  Nd5 {[%clk 0:01:45]} 18. Bh6 {[%clk 0:01:37]}  Nxc3 {[%clk 0:01:33]} 19. bxc3 {[%clk 0:01:27]}  Re8 {[%clk 0:01:32]} 20. d5 {[%clk 0:01:22]}  Na5 {[%clk 0:01:15]} 21. dxe6 {[%clk 0:01:04]}  f6 {[%clk 0:01:15]} 22. Qb5 {[%clk 0:00:35]}  Qc7 {[%clk 0:01:11]} 23. Nd4 {[%clk 0:00:29]}  Qxc3 {[%clk 0:00:54]} 24. h4 {[%clk 0:00:27]}  Qc5 {[%clk 0:00:43]} 25. Qe2 {[%clk 0:00:23]}  Nc6 {[%clk 0:00:29]} 26. Nb5 {[%clk 0:00:19]}  a6 {[%clk 0:00:09]} 27. Nd6 {[%clk 0:00:14]}  Bxd6 {[%clk 0:00:07]} 28. e7+ {[%clk 0:00:13]}  Kh8 {[%clk 0:00:07]} 29. Qe6 {[%clk 0:00:12]}  Be5 {[%clk 0:00:04]} 30. Rd5 {[%clk 0:00:10]}  Qc3 {[%clk 0:00:02]} 31. Rdxe5 {[%clk 0:00:10]}  Qxe5 {[%clk 0:00:01]} 32. Rxe5 {[%clk 0:00:08]}  Nxe5 {[%clk 0:00:01]} 33. Qxf6# {[%clk 0:00:08]} 1-0


[Site "https://www.chess.com"]

[Event "Titled Tuesday Blitz January 03 Late 2023"]
[White "Janaszak, Dawid"]
[Black "Kaplan, Avi Harrison"]
[WhiteFideId "1119206"]
[BlackFideId "30934559"]
[WhiteElo "2316"]
[BlackElo "2146"]
[Result "0-1"]
[Round "11"]
[TimeControl "180+2"]
[Date "2023.01.03"]
[WhiteClock "0:00:04"]
[BlackClock "0:00:26"]

1. e4 {[%clk 0:03:00]}  c5 {[%clk 0:02:59]} 2. d3 {[%clk 0:02:59]}  e5 {[%clk 0:02:59]} 3. f4 {[%clk 0:02:59]}  d6 {[%clk 0:02:58]} 4. Nf3 {[%clk 0:02:58]}  Nc6 {[%clk 0:02:58]} 5. Be2 {[%clk 0:02:57]}  Nf6 {[%clk 0:02:58]} 6. O-O {[%clk 0:02:57]}  Be7 {[%clk 0:02:58]} 7. fxe5 {[%clk 0:02:49]}  dxe5 {[%clk 0:02:57]} 8. Qe1 {[%clk 0:02:49]}  O-O {[%clk 0:02:57]} 9. c3 {[%clk 0:02:46]}  c4 {[%clk 0:02:47]} 10. dxc4 {[%clk 0:02:38]}  Nxe4 {[%clk 0:02:45]} 11. Be3 {[%clk 0:02:37]}  Be6 {[%clk 0:02:39]} 12. Nbd2 {[%clk 0:02:36]}  Bc5 {[%clk 0:02:33]} 13. Bxc5 {[%clk 0:02:32]}  Nxc5 {[%clk 0:02:34]} 14. Rd1 {[%clk 0:02:26]}  Qb6 {[%clk 0:02:33]} 15. Kh1 {[%clk 0:02:13]}  Qxb2 {[%clk 0:02:31]} 16. Qh4 {[%clk 0:01:53]}  h6 {[%clk 0:02:21]} 17. Ne4 {[%clk 0:01:32]}  Qxe2 {[%clk 0:01:55]} 18. Nxc5 {[%clk 0:01:09]}  Qxc4 {[%clk 0:01:55]} 19. Qf2 {[%clk 0:01:03]}  Bg4 {[%clk 0:01:42]} 20. Nxb7 {[%clk 0:00:58]}  e4 {[%clk 0:01:29]} 21. Nd6 {[%clk 0:00:53]}  Qa4 {[%clk 0:01:23]} 22. h3 {[%clk 0:00:34]}  exf3 {[%clk 0:01:09]} 23. hxg4 {[%clk 0:00:33]}  Qxg4 {[%clk 0:01:09]} 24. Qxf3 {[%clk 0:00:25]}  Qh4+ {[%clk 0:01:03]} 25. Kg1 {[%clk 0:00:24]}  Ne5 {[%clk 0:01:03]} 26. Qf4 {[%clk 0:00:20]}  Qxf4 {[%clk 0:00:59]} 27. Rxf4 {[%clk 0:00:20]}  Rad8 {[%clk 0:00:59]} 28. Rfd4 {[%clk 0:00:20]}  f6 {[%clk 0:00:57]} 29. c4 {[%clk 0:00:20]}  Rd7 {[%clk 0:00:51]} 30. c5 {[%clk 0:00:20]}  Rc7 {[%clk 0:00:51]} 31. Rd5 {[%clk 0:00:18]}  Rb8 {[%clk 0:00:40]} 32. R1d2 {[%clk 0:00:19]}  Rb1+ {[%clk 0:00:39]} 33. Kf2 {[%clk 0:00:19]}  Rc1 {[%clk 0:00:40]} 34. Ne4 {[%clk 0:00:13]}  Kf7 {[%clk 0:00:37]} 35. Rd6 {[%clk 0:00:09]}  f5 {[%clk 0:00:33]} 36. Ng3 {[%clk 0:00:06]}  R1xc5 {[%clk 0:00:27]} 37. R6d5 {[%clk 0:00:06]}  Ng4+ {[%clk 0:00:26]} 38. Ke2 {[%clk 0:00:05]}  Rxd5 {[%clk 0:00:25]} 39. Rxd5 {[%clk 0:00:05]}  Rc2+ {[%clk 0:00:26]} 40. Kf3 {[%clk 0:00:04]}  Rf2# {[%clk 0:00:26]} 0-1


[Site "https://www.chess.com"]